[Event "Czech Championship 2022"]
[Site "Usti nad Labem"]
[Date "2022.05.22"]
[Round "9.22"]
[White "Nytra, Ondrej"]
[Black "Jirasko, Miroslav"]
[Result "0-1"]
[ECO "B32"]
[WhiteElo "2219"]
[BlackElo "2091"]
[Annotator "TA"]
[PlyCount "86"]
[EventDate "2022.05.12"]
[EventType "swiss"]
[EventCountry "CZE"]
[SourceTitle "playchess.com"]
[Source "ChessBase"]
[SourceQuality "1"]
[TimeControl "40/5400+30:1800+30"]

{[%evp 14,86,36,31,31,31,31,30,22,22,25,29,27,12,18,16,26,1,39,15,36,43,42,33,27,15,23,-119,-114,-119,-123,-131,-129,-118,-134,-205,-202,-262,-271,-268,-254,-312,-312,-303,-317,-301,-312,-313,-282,-280,-193,-193,-193,-233,-186,-228,-198,-282,-287,-294,-294,-256,-181,-368,-368,-368,-368,-375,-368,-368,-368,-367,-367,-354,-354]} 1. e4 {[%emt 0:00:02]} c5 {[%emt 0:00:04]} 2. Nf3 {[%emt 0:00:02]} Nc6 {[%emt 0:00:04]} 3. d4 {[%emt 0:00:03]} cxd4 {[%emt 0:00:06]} 4. Nxd4 {[%emt 0:00:02]} e5 {[%emt 0:00:06]} 5. Nb5 {[%emt 0:00:02]} d6 {[%emt 0:00:05]} 6. N1c3 {[%emt 0:00:01]} a6 {[%emt 0:00:06]} 7. Na3 {[%emt 0:00:03]} Be7 {[%emt 0:00:05]} 8. Nc4 {[%emt 0:00:02]} b5 {[%emt 0:00:09] B32: Sicilian: Löwenthal and Kalashnikov Variations.} 9. Ne3 {[%emt 0:00:03]} Nf6 {[%emt 0:00:16]} 10. Bd3 {[%emt 0:00:03]} O-O {[%emt 0:00:56] White has an edge.} 11. O-O {[%emt 0:00:06]} Nb4 {[%emt 0:02:06]} 12. Be2 {[%emt 0:00:04]} Be6 {[%emt 0:03:27]} 13. a3 {[%emt 0:04:56]} Nc6 {[%emt 0:00:07]} 14. Bd3 {[%emt 0:00:01]} Nd7 {[%emt 0:10:47]} 15. Ned5 {[%emt 0:09:23] [#]} Nc5 $146 {[%emt 0:02:59]} ({Predecessor:} 15... Bg5 16. Nb4 Nd4 17. Be3 Nc5 18. f4 Bh6 19. Bxd4 exd4 20. Ncd5 Rc8 21. f5 Bxd5 22. Nxd5 f6 23. b3 Re8 {½-½ (30) Kozarski,F (2280)-Borisovs,L (2335) ICCF email 2008}) 16. Be3 {[%emt 0:01:08]} Nxd3 {[%emt 0:01:46]} 17. Qxd3 {[%emt 0:00:04]} Bg5 {[%emt 0:05:34]} 18. Bb6 {[%emt 0:06:00]} Qd7 {[%emt 0:03:49]} 19. Rad1 {[%emt 0:01:45]} Rac8 {[%emt 0:07:42]} 20. f4 {[%emt 0:12:32]} (20. Qg3 f6 21. Be3 Bxe3 22. Nxe3 (22. fxe3 Bxd5 23. Nxd5 Qe6) (22. Qxe3 Qd8)) (20. Be3 $11 Bxe3 21. Qxe3) 20... exf4 $17 {[%emt 0:08:06] Black keeps a firm grip on the game.} 21. Nxf4 {[%emt 0:03:31]} Bc4 {[%emt 0:02:40][%cal Be6c4,Bc4f1,Bf1c4][%mdl 32] This bishop pair is nice.} 22. Qg3 {[%emt 0:00:21]} Bxf1 {[%emt 0:01:10]} 23. Qxg5 {[%emt 0:00:05] [#]} Bc4 {[%emt 0:00:17]} 24. Nh5 {[%emt 0:07:13]} (24. Bc5 $17) 24... f6 $19 {[%emt 0:02:02][%cal Bf7f6,Bf6f5,Bf5e4][%mdl 32]} 25. Qg3 {[%emt 0:00:03] [#]} Qf7 $1 {[%emt 0:04:15]} 26. Nf4 {[%emt 0:03:37]} f5 {[%emt 0:02:06]} 27. b3 {[%emt 0:03:22] [#]} fxe4 $1 {[%emt 0:01:50]} 28. bxc4 {[%emt 0:00:08] aiming for Nfd5.} Qxf4 {[%emt 0:00:07]} 29. Qxf4 {[%emt 0:00:02]} Rxf4 {[%emt 0:00:07]} 30. cxb5 {[%emt 0:00:03]} axb5 {[%emt 0:08:59]} 31. Nxb5 {[%emt 0:00:30]} Rb8 {[%emt 0:13:25]} 32. Be3 {[%emt 0:00:04]} Rf6 {[%emt 0:00:07]} ({Stronger than} 32... Rxb5 33. Bxf4 d5 34. a4 $15) 33. a4 {[%emt 0:04:30]} Na5 {[%emt 0:04:19]} 34. Rd4 {[%emt 0:01:56]} Rc8 {[%emt 0:01:12]} ({Don't blunder} 34... Rbf8 $2 35. h3) 35. c3 {[%emt 0:01:21]} (35. Nxd6 $142 Rxc2 36. g3) 35... Rc4 {[%emt 0:00:28]} 36. Rd1 {[%emt 0:03:23]} Rxa4 {[%emt 0:02:11] Strongly threatening ...Nc4.} 37. Nxd6 {[%emt 0:00:04]} Nc4 {[%emt 0:03:17]} 38. Nxe4 $2 {[%emt 0:00:48]} (38. Nxc4 {was the only defense.} Rxc4 39. Bd4) 38... Nxe3 {[%emt 0:00:59] Black is winning.} 39. Nxf6+ {[%emt 0:01:05]} gxf6 {[%emt 0:00:13] KRN-KR} 40. Rd8+ {[%emt 0:01:41]} Kf7 {[%emt 0:00:16]} 41. Kf2 {[%emt 0:30:01]} Ng4+ {[%emt 0:30:54]} 42. Kg3 {[%emt 0:00:05]} Rc4 {[%emt 0:01:24]} 43. Ra8 {[%emt 0:01:18]} Ne3 {[%emt 0:02:02] Weighted Error Value: White=0.29 (precise) /Black=0.09 (flawless)} 0-1

[Event "Czech Championship 2022"]
[Site "Usti nad Labem"]
[Date "2022.05.22"]
[Round "9.23"]
[White "Delgerdalai, Bayarjavkhlan"]
[Black "Horak, Martin"]
[Result "1/2-1/2"]
[ECO "D35"]
[WhiteElo "2119"]
[BlackElo "2343"]
[Annotator "TA"]
[PlyCount "105"]
[EventDate "2022.05.12"]
[EventType "swiss"]
[EventCountry "CZE"]
[SourceTitle "playchess.com"]
[Source "ChessBase"]
[SourceQuality "1"]
[TimeControl "40/5400+30:1800+30"]

{[%evp 22,105,0,0,0,-1,-8,0,0,0,0,0,8,0,12,10,13,4,6,0,22,15,11,16,22,20,14,14,24,6,35,8,12,0,0,0,0,0,0,0,0,0,0,0,0,0,0,0,0,0,0,0,0,0,0,0,0,0,11,7,18,9,128,27,195,127,127,127,127,120,112,35,35,34,30,0,0,0,0,0,0,0,0,0,3,4]} 1. d4 {[%emt 0:00:05]} Nf6 {[%emt 0:00:19]} 2. c4 {[%emt 0:00:23]} e6 {[%emt 0:00:23]} 3. Nf3 {[%emt 0:00:41]} d5 {[%emt 0:01:51]} 4. cxd5 {[%emt 0:00:48]} exd5 {[%emt 0:00:13]} 5. Nc3 {[%emt 0:00:30]} c6 {[%emt 0:03:33]} 6. Bg5 {[%emt 0:01:49]} Be7 {[%emt 0:01:20]} 7. e3 {[%emt 0:01:03]} h6 {[%emt 0:03:18]} 8. Bh4 {[%emt 0:00:54]} Bf5 {[%emt 0:00:33]} 9. Bd3 {[%emt 0:01:22]} Bxd3 {[%emt 0:09:56]} 10. Qxd3 {[%emt 0:00:34]} O-O {[%emt 0:00:42]} 11. O-O {[%emt 0:03:41]} Nbd7 {[%emt 0:01:01]} 12. Rab1 {[%emt 0:01:48]} a5 {[%emt 0:02:02] D35: Queen's Gambit Declined: Exchange Variation.} 13. a3 {[%emt 0:01:47] [#]} Ne8 $146 {[%emt 0:02:25]} ({Predecessor:} 13... a4 14. Qc2 Qa5 15. Ne5 Rfe8 16. Nd3 Ne4 17. Bxe7 Rxe7 18. Rfc1 Nd6 19. h3 Ree8 {½-½ (57) Jobava,B (2620)-Gozzoli,Y (2608) Europe Echecs INT 2020}) 14. Bg3 {[%emt 0:02:26]} Bd6 {[%emt 0:01:46]} 15. b4 {[%emt 0:01:47]} axb4 {[%emt 0:01:06]} 16. axb4 {[%emt 0:01:35]} Ra3 {[%emt 0:05:30]} 17. Qc2 {[%emt 0:03:06]} Nb6 {[%emt 0:07:37]} 18. b5 {[%emt 0:04:00]} Nc4 {[%emt 0:01:29]} 19. bxc6 {[%emt 0:04:42]} bxc6 {[%emt 0:00:07]} 20. Na4 {[%emt 0:01:49]} Qa5 {[%emt 0:01:51]} 21. Nb2 {[%emt 0:02:42]} Bxg3 {[%emt 0:05:28]} 22. hxg3 {[%emt 0:05:36]} Ned6 {[%emt 0:00:29]} 23. Nxc4 {[%emt 0:03:44]} Nxc4 {[%emt 0:00:57]} 24. Qf5 {[%emt 0:04:23]} Qc7 {[%emt 0:02:54]} 25. g4 {[%emt 0:06:44]} Qe7 {[%emt 0:04:54]} 26. g5 {[%emt 0:05:31]} g6 {[%emt 0:02:04]} 27. Qf4 {[%emt 0:03:59]} hxg5 {[%emt 0:00:48]} 28. Qxg5 {[%emt 0:01:33]} Qxg5 {[%emt 0:12:58]} 29. Nxg5 {[%emt 0:00:03]} Nd2 {[%emt 0:00:30]} 30. Ra1 {[%emt 0:00:05]} Rfa8 {[%emt 0:00:17]} 31. Rxa3 {[%emt 0:00:10]} Rxa3 $11 {[%emt 0:00:03][%mdl 4096] Endgame KRN-KRN} 32. Rc1 {[%emt 0:05:37]} Ra6 {[%emt 0:00:47]} 33. Rc2 {[%emt 0:02:27]} Nc4 {[%emt 0:01:42]} 34. Rc1 {[%emt 0:01:36]} Nd2 {[%emt 0:00:17]} 35. Nh3 {[%emt 0:04:09]} Kf8 {[%emt 0:01:21]} 36. Nf4 {[%emt 0:00:46]} Ke7 {[%emt 0:00:23]} 37. Nd3 {[%emt 0:00:16]} Nc4 {[%emt 0:01:08]} 38. Rb1 {[%emt 0:01:16]} Ra7 {[%emt 0:01:46] Inhibits Rb7+.} 39. Rb8 {[%emt 0:01:22]} Kd6 {[%emt 0:01:26]} 40. g4 {[%emt 0:01:19]} g5 {[%emt 0:02:40]} 41. Nc5 {[%emt 0:32:05]} Re7 {[%emt 0:33:30]} (41... Ne5 $11 {keeps the balance.}) 42. Kg2 {[%emt 0:00:44]} (42. Rd8+ $16 Kc7 43. Rg8) 42... Nd2 $2 {[%emt 0:01:55] [#]} (42... Ne5 $1 $11 {and Black stays safe.}) 43. Rd8+ {[%emt 0:03:11]} (43. Rg8 $1 $18) 43... Kc7 $16 {[%emt 0:00:06]} 44. Rg8 {[%emt 0:00:21]} f6 {[%emt 0:00:18]} 45. Rf8 {[%emt 0:00:44]} Ne4 {[%emt 0:00:43]} 46. Nd3 {[%emt 0:01:25] White is more active.} (46. Nxe4 $16 Rxe4 47. Rf7+ (47. Rxf6 c5 $16) 47... Kb6 48. Rxf6 Rxg4+ 49. Kh3) 46... Re6 $14 {[%emt 0:00:37]} 47. Kf1 {[%emt 0:02:15]} Kd7 {[%emt 0:03:37]} 48. Ra8 {[%emt 0:06:37]} Re8 {[%emt 0:00:56] The position is equal.} 49. Ra7+ {[%emt 0:00:17]} Kd6 {[%emt 0:00:23]} 50. f3 {[%emt 0:05:09]} Nd2+ {[%emt 0:01:06]} ({Don't play} 50... Nc3 51. Nc5 Re7 52. Nb7+ Ke6 53. Nd8+ Kd6 54. Nf7+ Ke6 55. Nd8+ Kd6 56. Nf7+ Ke6 57. Nd8+ $16) 51. Kf2 $1 {[%emt 0:03:14]} Re7 $1 {[%emt 0:01:30]} 52. Rxe7 {[%emt 0:00:00]} Kxe7 {[%emt 0:00:00]} 53. Ke2 {[%emt 0:00:00] Weighted Error Value: White=0.13 (very precise) /Black=0.15 (very precise)} 1/2-1/2